[Event "Live Chess"]
[Site "Chess.com"]
[Date "2024.06.01"]
[Round "-"]
[White "lyricalschemes"]
[Black "Tushinskiy"]
[Result "1-0"]
[WhiteElo "2460"]
[BlackElo "2251"]
[TimeControl "300"]
[EndTime "14:43:34 PDT"]
[Termination "lyricalschemes won by resignation"]

1. e4 {[%clk 0:04:59]} 1... e5 {[%clk 0:04:57.5]} 2. Nc3 {[%clk 0:04:57.7]} 2...
d6 {[%clk 0:04:57.4]} 3. d4 {[%clk 0:04:56.3]} 3... Nc6 {[%clk 0:04:54.2]} 4.
dxe5 {[%clk 0:04:51.7]} 4... dxe5 {[%clk 0:04:54.1]} 5. Qxd8+ {[%clk 0:04:49.9]}
5... Nxd8 {[%clk 0:04:53.9]} 6. Be3 {[%clk 0:04:45.9]} 6... Ne6 {[%clk
0:04:49.8]} 7. O-O-O {[%clk 0:04:43.9]} 7... c6 {[%clk 0:04:48.6]} 8. Nge2
{[%clk 0:04:37.9]} 8... Nf6 {[%clk 0:04:47.1]} 9. h3 {[%clk 0:04:36.6]} 9... Be7
{[%clk 0:04:42]} 10. g4 {[%clk 0:04:33.4]} 10... h6 {[%clk 0:04:40.7]} 11. Ng3
{[%clk 0:04:27.9]} 11... Ng5 {[%clk 0:04:37.9]} 12. Bxg5 {[%clk 0:04:24.9]}
12... hxg5 {[%clk 0:04:36.2]} 13. Bc4 {[%clk 0:04:17.2]} 13... Be6 {[%clk
0:04:34.5]} 14. Bxe6 {[%clk 0:04:14.9]} 14... fxe6 {[%clk 0:04:34.4]} 15. Rd3
{[%clk 0:03:50.8]} 15... Bc5 {[%clk 0:04:31.4]} 16. Rd2 {[%clk 0:03:39]} 16...
Nxg4 {[%clk 0:04:24.6]} 17. hxg4 {[%clk 0:03:37.9]} 17... Rxh1+ {[%clk
0:04:23.9]} 18. Nxh1 {[%clk 0:03:37.8]} 18... Ke7 {[%clk 0:04:22.9]} 19. Ng3
{[%clk 0:03:36.3]} 19... Rh8 {[%clk 0:04:22.8]} 20. Na4 {[%clk 0:03:33.5]} 20...
Bb4 {[%clk 0:04:19.7]} 21. c3 {[%clk 0:03:32.4]} 21... Ba5 {[%clk 0:04:18.6]}
22. Nc5 {[%clk 0:03:31.5]} 1-0

[Event "Live Chess"]
[Site "Chess.com"]
[Date "2024.06.01"]
[Round "-"]
[White "SimonB4a"]
[Black "jimwad"]
[Result "1-0"]
[WhiteElo "2184"]
[BlackElo "1286"]
[TimeControl "300"]
[EndTime "14:43:38 PDT"]
[Termination "SimonB4a won by resignation"]

1. d4 {[%clk 0:04:58]} 1... d5 {[%clk 0:04:58.9]} 2. c4 {[%clk 0:04:56.9]} 2...
c6 {[%clk 0:04:57.1]} 3. Nc3 {[%clk 0:04:55.7]} 3... Nf6 {[%clk 0:04:56]} 4. Nf3
{[%clk 0:04:54.7]} 4... Bf5 {[%clk 0:04:54]} 5. cxd5 {[%clk 0:04:52.9]} 5...
cxd5 {[%clk 0:04:52]} 6. Bg5 {[%clk 0:04:50.7]} 6... e6 {[%clk 0:04:48.5]} 7.
Qb3 {[%clk 0:04:46.9]} 7... b6 {[%clk 0:04:40.9]} 8. e3 {[%clk 0:04:45.1]} 8...
Be7 {[%clk 0:04:39.5]} 9. Bb5+ {[%clk 0:04:43.5]} 9... Nbd7 {[%clk 0:04:37.3]}
10. Ne5 {[%clk 0:04:39.5]} 10... O-O {[%clk 0:04:25.5]} 11. Nc6 {[%clk
0:04:37.7]} 11... Qe8 {[%clk 0:04:16.7]} 12. O-O {[%clk 0:04:14.9]} 12... h6
{[%clk 0:04:12.3]} 13. Nxe7+ {[%clk 0:04:04.6]} 13... Qxe7 {[%clk 0:04:07.7]}
14. Bf4 {[%clk 0:04:00.6]} 14... Ne4 {[%clk 0:03:57.1]} 15. Rac1 {[%clk
0:03:57.1]} 15... Ndf6 {[%clk 0:03:50.6]} 16. Nxe4 {[%clk 0:03:48.4]} 16... Nxe4
{[%clk 0:03:49.2]} 17. Rc7 {[%clk 0:03:42.1]} 17... Qf6 {[%clk 0:03:35.5]} 18.
Rfc1 {[%clk 0:03:34.5]} 18... Qh4 {[%clk 0:03:24.1]} 19. Bg3 {[%clk 0:03:32]}
19... Nxg3 {[%clk 0:03:22.7]} 20. hxg3 {[%clk 0:03:30.9]} 20... Qf6 {[%clk
0:03:09.4]} 21. Qa3 {[%clk 0:03:26.7]} 21... a5 {[%clk 0:02:58.1]} 22. Qd6
{[%clk 0:03:17.9]} 22... Rab8 {[%clk 0:02:42.8]} 23. R1c6 {[%clk 0:02:56.4]}
23... Bb1 {[%clk 0:02:33.1]} 24. a3 {[%clk 0:02:51.7]} 24... h5 {[%clk
0:02:08.1]} 25. Rxb6 {[%clk 0:02:48.6]} 25... Rxb6 {[%clk 0:02:06.7]} 26. Qxb6
{[%clk 0:02:47.4]} 26... h4 {[%clk 0:02:04.8]} 27. gxh4 {[%clk 0:02:42.7]} 27...
Qxh4 {[%clk 0:02:03.4]} 28. Qxa5 {[%clk 0:02:32.4]} 28... Be4 {[%clk 0:01:58.2]}
29. Bf1 {[%clk 0:02:31]} 29... Rb8 {[%clk 0:01:45.5]} 30. b4 {[%clk 0:02:25.1]}
30... g6 {[%clk 0:01:34.4]} 31. Qc5 {[%clk 0:02:23.6]} 31... Kg7 {[%clk
0:01:26.7]} 32. Rc8 {[%clk 0:02:19.1]} 32... Rxc8 {[%clk 0:01:20.7]} 33. Qxc8
{[%clk 0:02:17.9]} 33... Bd3 {[%clk 0:01:12.2]} 34. Bxd3 {[%clk 0:02:13.5]} 1-0

[Event "Live Chess"]
[Site "Chess.com"]
[Date "2024.06.01"]
[Round "-"]
[White "Mangoalo"]
[Black "Plato_77"]
[Result "0-1"]
[WhiteElo "1064"]
[BlackElo "1353"]
[TimeControl "300"]
[EndTime "14:43:38 PDT"]
[Termination "Plato_77 won by resignation"]

1. e4 {[%clk 0:04:58.6]} 1... e6 {[%clk 0:04:58.5]} 2. d4 {[%clk 0:04:56.8]}
2... d5 {[%clk 0:04:57.8]} 3. exd5 {[%clk 0:04:56.7]} 3... exd5 {[%clk
0:04:57.5]} 4. Nc3 {[%clk 0:04:56.6]} 4... Nf6 {[%clk 0:04:55.6]} 5. Bg5 {[%clk
0:04:55.7]} 5... Bb4 {[%clk 0:04:50.7]} 6. Ne2 {[%clk 0:04:54.5]} 6... O-O
{[%clk 0:04:48.3]} 7. g3 {[%clk 0:04:53.7]} 7... h6 {[%clk 0:04:46.2]} 8. Bxf6
{[%clk 0:04:50]} 8... Qxf6 {[%clk 0:04:46.1]} 9. Bg2 {[%clk 0:04:49]} 9... Re8
{[%clk 0:04:44.6]} 10. O-O {[%clk 0:04:47.7]} 10... c6 {[%clk 0:04:36.1]} 11.
Nf4 {[%clk 0:04:46.4]} 11... Bf5 {[%clk 0:04:24.5]} 12. Re1 {[%clk 0:03:59]}
12... Nd7 {[%clk 0:04:21.6]} 13. Qd2 {[%clk 0:03:54.2]} 13... Nb6 {[%clk
0:04:05.6]} 14. a3 {[%clk 0:03:50.3]} 14... Nc4 {[%clk 0:04:03.2]} 15. Qc1
{[%clk 0:03:44.4]} 15... Bd6 {[%clk 0:03:44.7]} 16. b3 {[%clk 0:03:38.5]} 16...
Nb6 {[%clk 0:03:24.1]} 17. b4 {[%clk 0:03:35.7]} 17... Nc4 {[%clk 0:03:19.9]}
18. Ncxd5 {[%clk 0:03:11.5]} 18... cxd5 {[%clk 0:03:16]} 19. Nxd5 {[%clk
0:03:11.4]} 19... Qxd4 {[%clk 0:03:06.5]} 20. Rxe8+ {[%clk 0:02:53]} 20... Rxe8
{[%clk 0:03:06.4]} 21. Qf1 {[%clk 0:02:49.1]} 21... Bxc2 {[%clk 0:02:55.8]} 22.
Re1 {[%clk 0:02:44.9]} 22... Rxe1 {[%clk 0:02:49.5]} 23. Qxe1 {[%clk 0:02:44.8]}
23... Qd1 {[%clk 0:02:22.2]} 24. Nf6+ {[%clk 0:02:39.5]} 24... gxf6 {[%clk
0:02:19.5]} 25. Qxd1 {[%clk 0:02:36.6]} 25... Bxd1 {[%clk 0:02:19.4]} 26. Bxb7
{[%clk 0:02:33.8]} 26... Nxa3 {[%clk 0:02:18.6]} 27. b5 {[%clk 0:02:31.7]} 27...
Nxb5 {[%clk 0:02:15.6]} 28. f4 {[%clk 0:02:28.9]} 28... a5 {[%clk 0:02:14.1]}
29. Bc6 {[%clk 0:02:26.5]} 29... Be2 {[%clk 0:02:09.8]} 30. Bd5 {[%clk
0:02:22.7]} 30... a4 {[%clk 0:02:07.7]} 31. Kf2 {[%clk 0:02:21.8]} 31... Bd1
{[%clk 0:02:00.9]} 32. h4 {[%clk 0:02:19.7]} 32... a3 {[%clk 0:01:58.2]} 33. f5
{[%clk 0:02:15.6]} 33... Bc5+ {[%clk 0:01:54.2]} 34. Kg2 {[%clk 0:02:14.5]}
34... Nc3 {[%clk 0:01:49.9]} 35. Bc4 {[%clk 0:02:01.5]} 35... a2 {[%clk
0:01:48.2]} 36. Bxa2 {[%clk 0:01:59.5]} 36... Nxa2 {[%clk 0:01:48.1]} 0-1

[Event "Live Chess"]
[Site "Chess.com"]
[Date "2024.06.01"]
[Round "-"]
[White "LL220284LL"]
[Black "bez2104"]
[Result "1-0"]
[WhiteElo "2531"]
[BlackElo "1561"]
[TimeControl "300"]
[EndTime "14:43:56 PDT"]
[Termination "LL220284LL won on time"]

1. g3 {[%clk 0:04:57.8]} 1... Nf6 {[%clk 0:04:57.5]} 2. Bg2 {[%clk 0:04:56.7]}
2... g6 {[%clk 0:04:56.6]} 3. Nf3 {[%clk 0:04:55.1]} 3... Bg7 {[%clk 0:04:54.9]}
4. b3 {[%clk 0:04:55]} 4... O-O {[%clk 0:04:52.9]} 5. O-O {[%clk 0:04:53.6]}
5... d6 {[%clk 0:04:49.3]} 6. Bb2 {[%clk 0:04:52.6]} 6... e5 {[%clk 0:04:48.3]}
7. d3 {[%clk 0:04:50.5]} 7... Bg4 {[%clk 0:04:45.2]} 8. Nbd2 {[%clk 0:04:49.1]}
8... Nbd7 {[%clk 0:04:43.2]} 9. c4 {[%clk 0:04:48]} 9... c6 {[%clk 0:04:40.9]}
10. Qc2 {[%clk 0:04:39.6]} 10... Qc7 {[%clk 0:04:37.7]} 11. Rae1 {[%clk
0:04:37.4]} 11... Rad8 {[%clk 0:04:35.5]} 12. b4 {[%clk 0:04:31.3]} 12... d5
{[%clk 0:04:18.7]} 13. a3 {[%clk 0:04:27.2]} 13... Rfe8 {[%clk 0:04:11.4]} 14.
e3 {[%clk 0:04:23.2]} 14... e4 {[%clk 0:03:55.9]} 15. dxe4 {[%clk 0:04:20.9]}
15... dxe4 {[%clk 0:03:54.7]} 16. Nd4 {[%clk 0:04:19]} 16... a6 {[%clk
0:03:33.6]} 17. Nxe4 {[%clk 0:04:14.5]} 17... Nxe4 {[%clk 0:03:30.7]} 18. Bxe4
{[%clk 0:04:14.4]} 18... c5 {[%clk 0:03:24.5]} 19. bxc5 {[%clk 0:03:53.2]} 19...
Nxc5 {[%clk 0:03:18.8]} 20. Bg2 {[%clk 0:03:47.7]} 20... Qa5 {[%clk 0:02:38]}
21. Bc3 {[%clk 0:03:39.4]} 21... Qc7 {[%clk 0:02:33.4]} 22. Rb1 {[%clk
0:03:34.7]} 22... b6 {[%clk 0:01:56.4]} 23. Rbc1 {[%clk 0:03:33.2]} 23... Ne6
{[%clk 0:01:05.6]} 24. Nxe6 {[%clk 0:03:27.9]} 24... Bxe6 {[%clk 0:00:54.3]} 25.
Bxg7 {[%clk 0:03:26.1]} 25... Kxg7 {[%clk 0:00:53.4]} 26. c5 {[%clk 0:03:25]}
26... Rb8 {[%clk 0:00:33.6]} 27. c6 {[%clk 0:03:21.8]} 27... b5 {[%clk
0:00:28.6]} 28. Rfd1 {[%clk 0:03:20.8]} 28... b4 {[%clk 0:00:25.2]} 29. axb4
{[%clk 0:03:19.4]} 29... Rxb4 {[%clk 0:00:22.7]} 30. Qc3+ {[%clk 0:03:18.5]}
30... Kg8 {[%clk 0:00:16.5]} 31. Qxb4 {[%clk 0:03:17.2]} 31... Qe5 {[%clk
0:00:09.8]} 32. c7 {[%clk 0:03:15.7]} 1-0

[Event "Live Chess"]
[Site "Chess.com"]
[Date "2024.06.01"]
[Round "-"]
[White "f4nomore"]
[Black "willc-h99"]
[Result "0-1"]
[WhiteElo "1236"]
[BlackElo "2622"]
[TimeControl "300"]
[EndTime "14:44:22 PDT"]
[Termination "willc-h99 won by resignation"]

1. b3 {[%clk 0:04:52.6]} 1... c5 {[%clk 0:04:54.2]} 2. Bb2 {[%clk 0:04:51.1]}
2... Nc6 {[%clk 0:04:53.4]} 3. e3 {[%clk 0:04:49.1]} 3... e5 {[%clk 0:04:49]} 4.
Nf3 {[%clk 0:04:47.1]} 4... d6 {[%clk 0:04:47.6]} 5. Bb5 {[%clk 0:04:44.8]} 5...
Bd7 {[%clk 0:04:41.8]} 6. O-O {[%clk 0:04:42.5]} 6... a6 {[%clk 0:04:40.5]} 7.
Be2 {[%clk 0:04:40.3]} 7... f5 {[%clk 0:04:34.2]} 8. d3 {[%clk 0:04:37.3]} 8...
Nf6 {[%clk 0:04:32.3]} 9. Nc3 {[%clk 0:04:34.6]} 9... d5 {[%clk 0:04:24.8]} 10.
e4 {[%clk 0:04:28.6]} 10... d4 {[%clk 0:04:20.1]} 11. Nd5 {[%clk 0:04:24.6]}
11... Bd6 {[%clk 0:04:14.1]} 12. c4 {[%clk 0:04:17.2]} 12... dxc3 {[%clk
0:04:08.2]} 13. Bxc3 {[%clk 0:04:14.5]} 13... O-O {[%clk 0:04:02.2]} 14. h3
{[%clk 0:03:59.5]} 14... Be6 {[%clk 0:03:51.9]} 15. Rc1 {[%clk 0:03:36.5]} 15...
Nxd5 {[%clk 0:03:49]} 16. exd5 {[%clk 0:03:34.3]} 16... Bxd5 {[%clk 0:03:48.9]}
17. Nh2 {[%clk 0:03:24.1]} 17... Qd7 {[%clk 0:03:41.6]} 18. Bf3 {[%clk
0:03:21.5]} 18... Qf7 {[%clk 0:03:26.9]} 19. Bxd5 {[%clk 0:03:14.7]} 19... Qxd5
{[%clk 0:03:26.8]} 20. Qf3 {[%clk 0:03:12.4]} 20... Qxf3 {[%clk 0:03:15.6]} 21.
gxf3 {[%clk 0:03:10.2]} 21... Rad8 {[%clk 0:03:09.1]} 22. Kh1 {[%clk 0:03:03.5]}
22... b6 {[%clk 0:03:02.7]} 23. Rg1 {[%clk 0:03:02.1]} 23... Be7 {[%clk
0:03:00.7]} 24. Nf1 {[%clk 0:02:59.3]} 24... Rxd3 {[%clk 0:02:55.7]} 25. Rg2
{[%clk 0:02:56.4]} 25... Rxf3 {[%clk 0:02:53.9]} 26. Ne3 {[%clk 0:02:51.6]}
26... Rxh3+ {[%clk 0:02:52.1]} 27. Kg1 {[%clk 0:02:48.3]} 27... Nd4 {[%clk
0:02:40.3]} 28. Re1 {[%clk 0:02:41.3]} 28... Nf3+ {[%clk 0:02:38.5]} 29. Kf1
{[%clk 0:02:33.7]} 29... Nxe1 {[%clk 0:02:36.9]} 30. Kxe1 {[%clk 0:02:32]} 30...
Bf6 {[%clk 0:02:32.2]} 31. Nxf5 {[%clk 0:02:21.8]} 31... Rxc3 {[%clk 0:02:30.6]}
0-1

[Event "Live Chess"]
[Site "Chess.com"]
[Date "2024.06.01"]
[Round "-"]
[White "wadsy27"]
[Black "dl_chess"]
[Result "1-0"]
[WhiteElo "2540"]
[BlackElo "1181"]
[TimeControl "300"]
[EndTime "14:44:33 PDT"]
[Termination "wadsy27 won on time"]

1. e4 {[%clk 0:04:58.7]} 1... e6 {[%clk 0:04:57.6]} 2. Nf3 {[%clk 0:04:58.1]}
2... d5 {[%clk 0:04:56.1]} 3. exd5 {[%clk 0:04:57.2]} 3... exd5 {[%clk
0:04:55.1]} 4. d4 {[%clk 0:04:57]} 4... Bd6 {[%clk 0:04:53.8]} 5. Bd3 {[%clk
0:04:56.6]} 5... Nf6 {[%clk 0:04:51.7]} 6. O-O {[%clk 0:04:56.2]} 6... O-O
{[%clk 0:04:50.5]} 7. h3 {[%clk 0:04:55.7]} 7... Nbd7 {[%clk 0:04:45.2]} 8. Bg5
{[%clk 0:04:54.6]} 8... c6 {[%clk 0:04:43.3]} 9. Nbd2 {[%clk 0:04:53.8]} 9... h6
{[%clk 0:04:41.7]} 10. Bh4 {[%clk 0:04:53.2]} 10... Qc7 {[%clk 0:04:36.2]} 11.
c3 {[%clk 0:04:52.6]} 11... Re8 {[%clk 0:04:29.6]} 12. Qc2 {[%clk 0:04:47.8]}
12... b6 {[%clk 0:03:49.5]} 13. Rae1 {[%clk 0:04:45.5]} 13... a5 {[%clk
0:03:37.2]} 14. Rxe8+ {[%clk 0:04:38.1]} 14... Nxe8 {[%clk 0:03:35]} 15. Re1
{[%clk 0:04:37.5]} 15... Nef6 {[%clk 0:03:31.9]} 16. Nf1 {[%clk 0:04:36.4]}
16... Ba6 {[%clk 0:03:24.6]} 17. Bxa6 {[%clk 0:04:35.6]} 17... Rxa6 {[%clk
0:03:22.2]} 18. Ne3 {[%clk 0:04:35.3]} 18... Ra8 {[%clk 0:03:05.1]} 19. Nf5
{[%clk 0:04:34.6]} 19... Re8 {[%clk 0:02:07.8]} 20. Rxe8+ {[%clk 0:04:21.1]}
20... Nxe8 {[%clk 0:02:06.1]} 21. Qe2 {[%clk 0:04:20.9]} 21... Nef6 {[%clk
0:02:00.7]} 22. Qa6 {[%clk 0:04:19.9]} 22... Kh7 {[%clk 0:01:45]} 23. Qa8 {[%clk
0:04:14.9]} 23... Ne4 {[%clk 0:01:35.3]} 24. Bd8 {[%clk 0:04:01.3]} 24... Qb8
{[%clk 0:01:28]} 25. Qxc6 {[%clk 0:03:59.6]} 25... Qxd8 {[%clk 0:01:03.8]} 26.
Nxd6 {[%clk 0:03:55.6]} 26... Nxd6 {[%clk 0:01:00.8]} 27. Qxd6 {[%clk
0:03:54.8]} 27... Qe8 {[%clk 0:00:48.2]} 28. Qxd5 {[%clk 0:03:54.1]} 28... Nf6
{[%clk 0:00:41.9]} 29. Qf5+ {[%clk 0:03:53.2]} 29... Kg8 {[%clk 0:00:38.9]} 30.
Ne5 {[%clk 0:03:52.9]} 30... Qa4 {[%clk 0:00:32.7]} 31. Qc8+ {[%clk 0:03:48]}
31... Kh7 {[%clk 0:00:27.2]} 32. Nxf7 {[%clk 0:03:47.2]} 32... Qd1+ {[%clk
0:00:22.9]} 33. Kh2 {[%clk 0:03:46.1]} 33... Qd2 {[%clk 0:00:08.7]} 34. Qh8+
{[%clk 0:03:44.9]} 34... Kg6 {[%clk 0:00:07.3]} 35. Ne5+ {[%clk 0:03:44.3]}
35... Kf5 {[%clk 0:00:05.5]} 36. Qxg7 {[%clk 0:03:42.7]} 36... Qf4+ {[%clk
0:00:03]} 37. Qg3 {[%clk 0:03:42]} 37... Qxg3+ {[%clk 0:00:01.5]} 38. Kxg3
{[%clk 0:03:41.5]} 38... Ne4+ {[%clk 0:00:00.2]} 39. Kf3 {[%clk 0:03:41.3]} 1-0

[Event "Live Chess"]
[Site "Chess.com"]
[Date "2024.06.01"]
[Round "-"]
[White "DylanMeyer1"]
[Black "ProfPoisson"]
[Result "1-0"]
[WhiteElo "1709"]
[BlackElo "1274"]
[TimeControl "300"]
[EndTime "14:44:48 PDT"]
[Termination "DylanMeyer1 won by checkmate"]

1. c4 {[%clk 0:04:57.7]} 1... e6 {[%clk 0:04:56.7]} 2. Nc3 {[%clk 0:04:57.1]}
2... f5 {[%clk 0:04:54.9]} 3. d4 {[%clk 0:04:56.4]} 3... Nf6 {[%clk 0:04:53.3]}
4. g3 {[%clk 0:04:55.9]} 4... Bb4 {[%clk 0:04:51.7]} 5. Qc2 {[%clk 0:04:52.9]}
5... O-O {[%clk 0:04:48]} 6. Bg2 {[%clk 0:04:51.8]} 6... d6 {[%clk 0:04:38.2]}
7. a3 {[%clk 0:04:50.5]} 7... Bxc3+ {[%clk 0:04:34.1]} 8. Qxc3 {[%clk
0:04:50.4]} 8... Ne4 {[%clk 0:04:25.9]} 9. Qc2 {[%clk 0:04:49.1]} 9... Nc6
{[%clk 0:04:20]} 10. e3 {[%clk 0:04:47]} 10... d5 {[%clk 0:04:05]} 11. b3 {[%clk
0:04:43.4]} 11... a5 {[%clk 0:03:46.3]} 12. Ne2 {[%clk 0:04:12.8]} 12... Qe8
{[%clk 0:03:33.8]} 13. O-O {[%clk 0:04:04]} 13... e5 {[%clk 0:03:24.7]} 14. f3
{[%clk 0:04:01.6]} 14... Ng5 {[%clk 0:03:06.8]} 15. cxd5 {[%clk 0:03:50.8]}
15... Ne7 {[%clk 0:02:54.3]} 16. dxe5 {[%clk 0:03:32.1]} 16... Nxd5 {[%clk
0:02:50.5]} 17. f4 {[%clk 0:03:25.8]} 17... Ne4 {[%clk 0:02:48]} 18. Bxe4 {[%clk
0:03:22.9]} 18... fxe4 {[%clk 0:02:45.7]} 19. Qxe4 {[%clk 0:03:22.8]} 19... c6
{[%clk 0:02:41.1]} 20. Bb2 {[%clk 0:03:18.8]} 20... Bf5 {[%clk 0:02:35]} 21. Qd4
{[%clk 0:03:16.2]} 21... Qh5 {[%clk 0:02:30.7]} 22. Rf2 {[%clk 0:03:06.2]} 22...
Bg4 {[%clk 0:02:25.9]} 23. e4 {[%clk 0:02:59.7]} 23... Bxe2 {[%clk 0:02:18.1]}
24. exd5 {[%clk 0:02:58.6]} 24... Rad8 {[%clk 0:02:01.9]} 25. e6 {[%clk
0:02:47.8]} 25... Rxd5 {[%clk 0:01:54]} 26. Qxg7# {[%clk 0:02:46.4]} 1-0

[Event "Live Chess"]
[Site "Chess.com"]
[Date "2024.06.01"]
[Round "-"]
[White "oscalik"]
[Black "IgorSchukin"]
[Result "1/2-1/2"]
[WhiteElo "2332"]
[BlackElo "1707"]
[TimeControl "300"]
[EndTime "14:45:03 PDT"]
[Termination "Game drawn by repetition"]

1. e4 {[%clk 0:04:54.6]} 1... c5 {[%clk 0:04:58.5]} 2. Nf3 {[%clk 0:04:52.6]}
2... e6 {[%clk 0:04:57.7]} 3. d4 {[%clk 0:04:51.3]} 3... cxd4 {[%clk 0:04:56]}
4. Nxd4 {[%clk 0:04:51.1]} 4... Nc6 {[%clk 0:04:55.2]} 5. Nb5 {[%clk 0:04:45.8]}
5... a6 {[%clk 0:04:52.3]} 6. Nd6+ {[%clk 0:04:43.9]} 6... Bxd6 {[%clk
0:04:51.3]} 7. Qxd6 {[%clk 0:04:43.5]} 7... Qe7 {[%clk 0:04:50.4]} 8. Qd2 {[%clk
0:04:24]} 8... Nf6 {[%clk 0:04:47]} 9. Bd3 {[%clk 0:04:23]} 9... d5 {[%clk
0:04:44]} 10. Nc3 {[%clk 0:04:05.5]} 10... dxe4 {[%clk 0:04:41.1]} 11. Nxe4
{[%clk 0:04:04.3]} 11... Nxe4 {[%clk 0:04:37.7]} 12. Bxe4 {[%clk 0:04:02.9]}
12... Bd7 {[%clk 0:04:36.8]} 13. O-O {[%clk 0:03:57.8]} 13... O-O {[%clk
0:04:34.4]} 14. b3 {[%clk 0:03:52.9]} 14... Rfd8 {[%clk 0:04:29]} 15. Qf4 {[%clk
0:03:49.7]} 15... f5 {[%clk 0:04:22.5]} 16. Bd3 {[%clk 0:03:46.4]} 16... e5
{[%clk 0:04:20.3]} 17. Bc4+ {[%clk 0:03:40.5]} 17... Kh8 {[%clk 0:04:16.6]} 18.
Qg3 {[%clk 0:03:34.2]} 18... b5 {[%clk 0:04:13]} 19. Bd5 {[%clk 0:03:30.4]}
19... f4 {[%clk 0:04:06.2]} 20. Qc3 {[%clk 0:03:11.8]} 20... Rac8 {[%clk
0:04:02.3]} 21. Re1 {[%clk 0:03:06.6]} 21... Qf6 {[%clk 0:03:55]} 22. Qb2 {[%clk
0:02:46.8]} 22... Nd4 {[%clk 0:03:42.1]} 23. c4 {[%clk 0:02:39.7]} 23... bxc4
{[%clk 0:03:36.4]} 24. bxc4 {[%clk 0:02:32.1]} 24... Bc6 {[%clk 0:03:29.9]} 25.
Bd2 {[%clk 0:01:59.1]} 25... Bxd5 {[%clk 0:03:25.9]} 26. cxd5 {[%clk 0:01:58.7]}
26... Rxd5 {[%clk 0:03:24.4]} 27. Qb7 {[%clk 0:01:58]} 27... Rcd8 {[%clk
0:03:01.3]} 28. Bc3 {[%clk 0:01:38.5]} 28... f3 {[%clk 0:02:44.4]} 29. Bxd4
{[%clk 0:01:32.4]} 29... Rxd4 {[%clk 0:02:38]} 30. Qxf3 {[%clk 0:01:12.8]} 30...
Rf4 {[%clk 0:02:31.9]} 31. Qg3 {[%clk 0:01:07.1]} 31... h5 {[%clk 0:02:20.7]}
32. Rad1 {[%clk 0:01:04.1]} 32... Rf8 {[%clk 0:02:18]} 33. Re2 {[%clk
0:00:58.2]} 33... h4 {[%clk 0:02:05.3]} 34. Qe3 {[%clk 0:00:56.8]} 34... e4
{[%clk 0:01:52.9]} 35. Rde1 {[%clk 0:00:54]} 35... g5 {[%clk 0:01:30.2]} 36. Rc1
{[%clk 0:00:39]} 36... g4 {[%clk 0:01:19]} 37. Qc3 {[%clk 0:00:38]} 37... Kg7
{[%clk 0:01:10.5]} 38. Qxf6+ {[%clk 0:00:36.4]} 38... R8xf6 {[%clk 0:01:06.2]}
39. Rc7+ {[%clk 0:00:35.5]} 39... Kg6 {[%clk 0:01:04.8]} 40. Re7 {[%clk
0:00:32]} 40... g3 {[%clk 0:00:56.4]} 41. hxg3 {[%clk 0:00:29.2]} 41... hxg3
{[%clk 0:00:55.2]} 42. R7xe4 {[%clk 0:00:25.7]} 42... Rxe4 {[%clk 0:00:48.1]}
43. Rxe4 {[%clk 0:00:24.3]} 43... Rxf2 {[%clk 0:00:44.1]} 44. Rg4+ {[%clk
0:00:22.6]} 44... Kf5 {[%clk 0:00:40.7]} 45. Rxg3 {[%clk 0:00:22.5]} 45... Rxa2
{[%clk 0:00:38.9]} 46. Rg8 {[%clk 0:00:21.6]} 46... Kf6 {[%clk 0:00:33.4]} 47.
g4 {[%clk 0:00:21.2]} 47... a5 {[%clk 0:00:32.2]} 48. Ra8 {[%clk 0:00:20.2]}
48... Kg5 {[%clk 0:00:30.1]} 49. Rg8+ {[%clk 0:00:18]} 49... Kf6 {[%clk
0:00:29.1]} 50. g5+ {[%clk 0:00:17.6]} 50... Kf7 {[%clk 0:00:28.3]} 51. Ra8
{[%clk 0:00:17]} 51... Kg7 {[%clk 0:00:26.9]} 52. Ra6 {[%clk 0:00:15.9]} 52...
a4 {[%clk 0:00:23.6]} 53. g6 {[%clk 0:00:15.5]} 53... a3 {[%clk 0:00:22.2]} 54.
Kh1 {[%clk 0:00:15.1]} 54... Kh6 {[%clk 0:00:18.6]} 55. Kg1 {[%clk 0:00:14.3]}
55... Kg7 {[%clk 0:00:17.7]} 56. Kh1 {[%clk 0:00:13.9]} 56... Kh6 {[%clk
0:00:16.9]} 57. Kg1 {[%clk 0:00:13.5]} 57... Kg7 {[%clk 0:00:16.3]} 1/2-1/2